[Event "Prague Festival Challengers 2024"]
[Site "Prague"]
[Date "2024.03.01"]
[Round "4.4"]
[White "Stalmach, Richard"]
[Black "Vaishali, Rameshbabu"]
[Result "0-1"]
[ECO "E04"]
[WhiteElo "2433"]
[BlackElo "2481"]
[Annotator "TA"]
[PlyCount "68"]
[EventDate "2024.02.22"]
[EventType "tourn"]
[EventCountry "CZE"]
[SourceTitle "playchess.com"]
[Source "ChessBase"]
[SourceQuality "1"]
[TimeControl "40/5400+30:1800+30"]

{[%evp 13,68,25,20,32,62,72,55,66,73,75,75,62,85,73,79,77,84,-87,-85,-86,-97,-100,-118,-141,-114,-130,-100,-185,-210,-322,-333,-845,-224,-670,-705,-710,-720,-706,-696,-698,-667,-903,-760,-756,-710,-1452,-1312,-1552,-1549,-1498,-1455,-29980,-5486,-29989,-29989,-29991,-29992]} 1. d4 {[%emt 0:00:04]} d5 {[%emt 0:00:16]} 2. c4 {[%emt 0:01:14]} e6 {[%emt 0:00:06]} 3. g3 {[%emt 0:02:18]} Nf6 {[%emt 0:00:19]} 4. Bg2 {[%emt 0:01:08]} dxc4 {[%emt 0:00:38]} 5. Nf3 {[%emt 0:00:15]} Nbd7 {[%emt 0:00:19]} 6. O-O {[%emt 0:00:38]} c6 {[%emt 0:00:25]} 7. a4 {[%emt 0:00:05]} a5 {[%emt 0:00:12]} 8. Qc2 {[%emt 0:01:33]} b5 {[%emt 0:00:48]} 9. Ne5 {[%emt 0:03:20]} Nxe5 {[%emt 0:01:05]} 10. dxe5 {[%emt 0:00:05] White is slightly better.} Nd5 {[%emt 0:00:06] [#]} 11. axb5 $1 {[%emt 0:03:49]} cxb5 {[%emt 0:00:10]} 12. Nc3 {[%emt 0:00:04]} Qb6 {[%emt 0:00:56]} 13. Nxd5 {[%emt 0:02:32]} exd5 {[%emt 0:00:03]} 14. Bxd5 {[%emt 0:00:05]} Ra7 {[%emt 0:00:17]} 15. b3 $2 {[%emt 0:03:26] [#]} (15. Bxc4 $16 {keeps the pressure on.} bxc4 16. Be3) 15... Bc5 $17 {[%emt 0:24:03] Dodges Be3. White is now going downhill.} 16. bxc4 {[%emt 0:10:39]} b4 {[%emt 0:04:27]} 17. Kg2 {[%emt 0:16:34][%cal Oc1e3]} O-O {[%emt 0:04:58][%mdl 1024] Black has strong compensation.} 18. f4 {[%emt 0:02:01] [#]} a4 $1 {[%emt 0:06:43][%mdl 512]} 19. f5 {[%emt 0:05:01][%cal Of5f6]} (19. Rxa4 $2 b3 20. Qe4 Rxa4 $19) (19. Rb1 Re8) 19... Re8 {[%emt 0:24:38]} 20. Rf4 {[%emt 0:16:51]} (20. Rxa4 $2 b3 (20... Rxe5 21. Rxa7 Qxa7 22. e4 $15) 21. Rxa7 bxc2 22. Rxf7 Kh8 $19 (22... Rxe5 $2 23. Rb7+ Rxd5 24. Rxb6 $18)) (20. e4 $17) 20... b3 $19 {[%emt 0:09:19]} (20... Rxe5 21. Rxa4 Rxa4 22. Qxa4 $11) 21. Qe4 {[%emt 0:03:37]} (21. Qc3 {was worth a try.}) 21... b2 {[%emt 0:02:20]} 22. e6 $2 {[%emt 0:12:35]} (22. Bxb2 Qxb2 23. e6 fxe6 (23... Qxa1 24. exf7+ Rxf7 25. Qxe8+ Bf8 26. Bxf7+ Kh8 27. Qxf8#) 24. Raf1) 22... f6 $2 {[%emt 0:04:24]} (22... bxa1=R 23. exf7+ Rxf7 24. Qxe8+ Bf8 25. Bxf7+ Kh8 26. Qxf8#) (22... Rxe6 $2 23. fxe6 fxe6 (23... bxa1=Q 24. exf7+) 24. Bxb2 $18) (22... Bxe6 23. Bxb2 Bxd5 24. Qxd5 Rxe2+ (24... Qxb2 $2 25. Qxc5 Rae7 26. Rh1 $19) 25. Kh3 Qxb2 (25... Rxb2 $2 26. f6 $19)) 23. e7+ $2 {[%emt 0:01:24]} (23. Bxb2 Qxb2 24. Rh4) 23... Kh8 {[%emt 0:00:05]} 24. Rh4 {[%emt 0:02:48]} bxc1=Q {[%emt 0:02:33]} (24... bxa1=R 25. Rxh7+ Kxh7 26. Qh4#) 25. Rxc1 {[%emt 0:00:04]} h6 {[%emt 0:00:30]} (25... Rexe7 26. Rxh7+ Kxh7 27. Qh4#) 26. Rb1 {[%emt 0:06:59]} Qd6 {[%emt 0:01:06]} 27. Qg4 {[%emt 0:00:40]} Raxe7 {[%emt 0:01:44]} (27... Rexe7 28. Rxh6+ gxh6 29. Qg8#) 28. e4 {[%emt 0:00:05]} a3 {[%emt 0:01:04] Hoping for ...Qe5.} 29. Qg6 {[%emt 0:00:47]} Qe5 {[%emt 0:01:43] Strongly threatening ...a2.} 30. Bf7 {[%emt 0:04:02] [#]} Rxf7 $1 {[%emt 0:01:51]} 31. Qxf7 {[%emt 0:00:02]} a2 {[%emt 0:02:24]} 32. Ra1 {[%emt 0:01:04]} Rf8 {[%emt 0:00:33] White is weak on the dark squares} (32... Qb2+ $142 33. Kh3 Rxe4 (33... Rf8 $2 34. Rxa2 Qxa2 35. Qc7 $19) 34. Rxe4 Bxf5+ (34... Qxa1 35. Re8+) 35. Rg4 Bxg4+ (35... Qxa1 36. Qxg7#) 36. Kxg4 Qxa1 37. Qe8+ Bf8 (37... Kh7 $2 38. Qe4+ f5+ 39. Qxf5+ g6 40. Qxc5 $19) 38. Qxf8+ Kh7 39. Qa8 Qd4+ 40. Kf3 a1=Q (40... a1=B $2 41. Kg2 $19) (40... a1=R $2 41. Qe4+ Qxe4+ 42. Kxe4 $19) 41. Qxa1 Qxa1 42. h4 Qc3+ 43. Kf4 Qxc4+ 44. Ke3 h5 45. Kd2 Kg6 46. g4 hxg4 47. Ke3 g3 48. h5+ Kf5 (48... Kxh5 49. Kf3 Qd3+ 50. Kg2 Kg4 51. Kg1 Qd2 52. Kh1 Qh2#) 49. Kf3 Qd3+ (49... Qf4+ 50. Ke2 g2 51. Kd3 g1=Q 52. h6 Qfd4+ 53. Ke2 Qgf2#) 50. Kg2 Qe3 51. Kh3 Qf2 52. Kh4 Qh2#) 33. Rxh6+ {[%emt 0:00:39]} gxh6 {[%emt 0:00:06]} 34. Qg6 {[%emt 0:00:02]} Qxe4+ {[%emt 0:00:13] Weighted Error Value: White=1.35/Black=0.40.  Mistake:       	White=5     	Black=1      Inaccurate:     	---       	Black=1      OK:         	White=1     	Black=7      Best:        	White=3     	Black=1      Strong:       	White=1     	---} ({Not} 34... Qxa1 35. Qxh6+ Kg8 36. Qg6+ Kh8 37. Qh6+ Kg8 38. Qg6+ Kh8 39. Qh6+ $11) 0-1

[Event "Prague Festival Challengers 2024"]
[Site "Prague"]
[Date "2024.03.01"]
[Round "4.5"]
[White "Rodshtein, Maxim"]
[Black "Finek, Vaclav"]
[Result "1/2-1/2"]
[ECO "A06"]
[WhiteElo "2580"]
[BlackElo "2416"]
[Annotator "TA"]
[PlyCount "266"]
[EventDate "2024.02.22"]
[EventType "tourn"]
[EventCountry "CZE"]
[SourceTitle "playchess.com"]
[Source "ChessBase"]
[SourceQuality "1"]
[TimeControl "40/5400+30:1800+30"]

{[%evp 12,266,22,18,16,27,24,16,16,6,15,0,37,37,32,19,55,67,55,48,63,62,72,57,72,43,37,42,40,6,95,100,102,113,154,167,169,61,69,-22,-21,-15,-30,-23,-26,-31,-22,-33,-2,-34,-9,-10,-22,-30,-8,-8,-4,-8,16,19,18,10,9,0,18,18,18,15,14,16,14,12,26,26,26,16,16,14,14,14,14,14,14,14,21,19,33,8,31,20,20,16,15,13,28,31,62,62,62,62,62,62,62,62,62,8,8,8,16,1,16,1,16,16,16,16,20,20,56,56,56,56,56,56,183,175,177,175,179,83,608,565,564,208,625,188,12798,12791,29958,29962,29978,12784,12100,2668,11445,3843,12100,11306,2593,84,185,208,1043,942,12784,245,577,583,213,81,80,0,533,599,204,197,203,168,179,154,197,197,600,181,189,189,189,173,171,170,165,155,164,151,180,179,194,188,184,77,77,77,77,77,77,77,77,77,77,77,77,77,77,77,77,77,77,77,77,77,77,75,75,64,64,64,63,59,64,64,64,64,64,64,64,64,64,64,64,64,64,64,64,64,63,56,56,56,63,63,63,56,57,57,64,57,57,55,64,11,18,12,18,12,11,31,55]} 1. d4 {[%emt 0:00:06]} d5 {[%emt 0:00:04]} 2. c4 {[%emt 0:00:17]} c6 {[%emt 0:00:04]} 3. Nf3 {[%emt 0:00:26]} Nf6 {[%emt 0:00:06]} 4. e3 {[%emt 0:00:22]} e6 {[%emt 0:00:06]} 5. Bd3 {[%emt 0:00:41]} Nbd7 {[%emt 0:00:11]} 6. b3 {[%emt 0:00:27]} Bd6 {[%emt 0:00:10]} 7. Bb2 {[%emt 0:00:13]} O-O {[%emt 0:00:12]} 8. O-O {[%emt 0:04:25]} b6 {[%emt 0:00:09]} 9. Nc3 {[%emt 0:01:43]} Bb7 {[%emt 0:01:09] The position is equal.} 10. Qe2 {[%emt 0:00:32]} Qe7 {[%emt 0:03:49]} 11. Rfe1 {[%emt 0:08:55]} c5 {[%emt 0:11:07]} 12. cxd5 {[%emt 0:00:18]} exd5 {[%emt 0:00:28]} 13. Ba6 {[%emt 0:07:57]} Bc6 {[%emt 0:11:33]} 14. Nb5 {[%emt 0:08:03]} Bxb5 {[%emt 0:02:45]} 15. Bxb5 {[%emt 0:00:52]} Qe6 {[%emt 0:01:11]} 16. Rad1 {[%emt 0:14:56]} Rfd8 {[%emt 0:03:41]} 17. dxc5 {[%emt 0:10:01]} bxc5 {[%emt 0:00:49]} 18. b4 {[%emt 0:00:19]} cxb4 {[%emt 0:11:24]} 19. Nd4 {[%emt 0:00:54]} Qe4 {[%emt 0:04:04]} 20. f3 {[%emt 0:08:42][%mdl 1024] White has compensation.} Qe5 {[%emt 0:07:23]} (20... Qh4 $11 {keeps the balance.} 21. g3 Qh3) 21. g4 $1 $16 {[%emt 0:02:42]} a6 {[%emt 0:13:24]} 22. Bc6 {[%emt 0:10:23]} (22. Bxa6 Qxh2+ (22... Rxa6 23. f4 $16) 23. Qxh2 Bxh2+ 24. Kxh2 Rxa6 $15) 22... Rac8 {[%emt 0:02:44]} 23. Bb7 $1 {[%emt 0:01:00] A strong pair of Bishops.} Rc7 {[%emt 0:00:24]} 24. Bxa6 {[%emt 0:03:34]} (24. Qxa6 Qxh2+ 25. Kf1 Bg3 (25... Qxb2 $2 26. Qxd6 Rxb7 27. g5 $19) (25... Nc5 $2 26. Rd2 $19) (25... Qxb2 $2 26. Qxd6 Rxb7 27. g5 $19) (25... Nc5 $2 26. Rd2 $19)) (24. Nc6 $18 Qxh2+ 25. Qxh2 Bxh2+ 26. Kxh2) 24... Ra8 {[%emt 0:00:52][%cal Oe5h2]} 25. Rd2 {[%emt 0:02:37] [#]} ({White should try} 25. Bd3 $1 $14) 25... Qxh2+ $1 $11 {[%emt 0:02:33]} 26. Qxh2 {[%emt 0:00:04]} Bxh2+ {[%emt 0:00:07]} 27. Rxh2 {[%emt 0:00:04]} Rxa6 {[%emt 0:00:05]} 28. g5 {[%emt 0:00:05]} Ne8 {[%emt 0:01:26]} 29. Nf5 {[%emt 0:00:21] Prevents Nd6} Nf8 {[%emt 0:05:43][%cal Of8e6]} 30. Rd1 {[%emt 0:00:04]} Rxa2 {[%emt 0:05:54] White should prevent ...Ne6.} 31. Rxd5 {[%emt 0:01:35]} Ne6 {[%emt 0:01:21] Prevents Rd8.} 32. f4 {[%emt 0:00:39]} (32. Rb5 {keeps more tension.} Nxg5 33. Rb8 Rc1+ 34. Bxc1 Nxf3+ 35. Kf1) 32... Raa7 {[%emt 0:03:39]} 33. Rhd2 {[%emt 0:01:40]} Kf8 {[%emt 0:01:28]} 34. Nd4 {[%emt 0:02:43] Dodges b3. And now Nb5 would win.} Ra6 {[%emt 0:01:28]} 35. Rb5 {[%emt 0:00:49]} f6 {[%emt 0:01:15]} 36. gxf6 {[%emt 0:06:00]} Nxd4 {[%emt 0:00:46]} 37. Rxd4 {[%emt 0:00:35]} Nxf6 {[%emt 0:00:54]} 38. Rdxb4 {[%emt 0:00:07]} Re7 {[%emt 0:01:24]} 39. Bd4 {[%emt 0:01:00] Hoping for Bc5.} Kf7 {[%emt 0:00:27]} 40. Kf2 {[%emt 0:00:36]} g6 {[%emt 0:02:20]} 41. Kf3 {[%emt 0:30:37]} Rae6 {[%emt 0:31:44]} 42. Rb2 {[%emt 0:02:39]} Rd7 {[%emt 0:00:00]} 43. Rb8 {[%emt 0:00:00]} Re8 {[%emt 0:00:00]} 44. R8b6 {[%emt 0:00:00]} Nd5 {[%emt 0:00:00]} 45. Ra6 {[%emt 0:00:00]} Re6 {[%emt 0:00:00]} 46. Ra8 {[%emt 0:00:00]} Re8 {[%emt 0:00:00]} 47. Ra5 {[%emt 0:00:00]} Re6 {[%emt 0:00:00]} 48. Rh2 {[%emt 0:00:00]} h5 {[%emt 0:00:00]} 49. Rb2 {[%emt 0:00:00]} Nf6 {[%emt 0:00:00]} 50. Rb8 {[%emt 0:00:00]} Rde7 {[%emt 0:00:00]} 51. Rc8 {[%emt 0:00:00]} Re8 {[%emt 0:00:00]} 52. Rcc5 {[%emt 0:00:00]} R8e7 {[%emt 0:00:00]} 53. Rcb5 {[%emt 0:00:00]} Ng4 {[%emt 0:00:31][%cal Rg4e3]} 54. f5 {[%emt 0:00:00]} gxf5 {[%emt 0:00:05]} 55. Rxf5+ {[%emt 0:00:00]} Nf6 {[%emt 0:00:28]} 56. Rg5 {[%emt 0:00:00]} Re8 {[%emt 0:02:07]} 57. Raf5 {[%emt 0:00:00]} Rh8 {[%emt 0:01:09] [#]} 58. e4 {[%emt 0:01:21] White is more active.} Rd8 $1 {[%emt 0:00:18]} 59. Be5 {[%emt 0:00:39][%cal Oe5f4]} Rd3+ {[%emt 0:01:07]} 60. Kf4 {[%emt 0:01:27]} h4 {[%emt 0:01:20]} 61. Rg1 {[%emt 0:04:14]} Rd8 {[%emt 0:02:02]} 62. Ra1 {[%emt 0:01:58]} Rde8 {[%emt 0:00:58]} 63. Ra7+ {[%emt 0:01:25]} (63. Ra5 {simplifies} Kg6 64. Rxf6+ Rxf6+ 65. Bxf6 Kxf6 66. Rh5) 63... R8e7 {[%emt 0:00:23]} (63... Kg6 {simplifies} 64. Rxf6+ Rxf6+ 65. Bxf6 Kxf6 66. Rh7 Rg8) 64. Ra8 {[%emt 0:00:22]} (64. Ra2 {simplifies} Re8 65. Ra5 Kg6 66. Rxf6+ Rxf6+ 67. Bxf6 Kxf6 68. Rh5) 64... h3 {[%emt 0:01:00]} 65. Rh8 {[%emt 0:00:16]} h2 {[%emt 0:00:16][%cal Oe6e5]} 66. Rh7+ {[%emt 0:01:10]} (66. Rxh2 Rxe5 67. Rxe5 Rxe5 $11) 66... Ke8 {[%emt 0:00:51]} 67. Rxh2 {[%emt 0:00:08]} (67. Rxf6 Rxf6+ (67... Rxh7 $2 68. Rxe6+ Kf7 69. Rf6+ Ke7 70. Kg3 $19) (67... Rxe5 68. Rfh6 $11) 68. Ke3 Rxh7 69. Bxf6 h1=Q (69... h1=R $2 70. Bg5 $19) 70. Kf4 Qc1+ 71. Kf5 Qe3 72. Kg4 Qxe4+ 73. Kg3 Rh5 (73... Qg6+ 74. Kf4 Qxf6+ 75. Ke4 Rh4+ 76. Ke3 Qc3+ 77. Kf2 Rh2+ 78. Kg1 Qg3+ 79. Kf1 Qf2#) (73... Qg6+ 74. Kf4 Qxf6+ 75. Ke4 Rh4+ 76. Ke3 Qc3+ 77. Kf2 Rh2+ 78. Kg1 Qg3+ 79. Kf1 Qf2#)) 67... Nxe4 {[%emt 0:00:20]} 68. Kxe4 $18 {[%emt 0:00:29]} Ra6 {[%emt 0:00:04]} 69. Rh8+ {[%emt 0:00:47]} Kd7 {[%emt 0:00:04]} 70. Rff8 {[%emt 0:00:18]} (70. Rb8 $18 {has better winning chances.}) 70... Rae6 $2 {[%emt 0:01:15][%mdl 8192]} (70... Ra4+ $16 71. Kf5 Ra5) 71. Rd8+ {[%emt 0:00:14]} Kc6 {[%emt 0:00:03]} 72. Rd5 $2 {[%emt 0:00:43]} (72. Rc8+ Kb5 73. Rb8+ Rb6 74. Ra8) 72... Kb6 $2 {[%emt 0:01:01]} (72... Kb7 73. Rb8+ Ka7 74. Ra5+ Ra6 75. Rxa6+ Kxa6) 73. Kd4 $2 {[%emt 0:00:42]} (73. Kf5) 73... Rg6 $2 {[%emt 0:00:17]} (73... Ka7 74. Bd6 Re8 75. Rh7+ Ka6) 74. Kc4 {[%emt 0:00:19] Intending Rb8+ and mate.} Rg4+ {[%emt 0:00:33]} 75. Bd4+ {[%emt 0:00:06]} Kb7 {[%emt 0:00:30]} 76. Kb5 {[%emt 0:00:55]} (76. Rb5+ $142 Kc7 77. Ra5 Rge4 78. Kd5 Rxd4+ 79. Kxd4 Re2 80. Rh6 Re1 81. Ra7+ Kb8 82. Rf7) 76... Rc7 {[%emt 0:00:53]} 77. Ka5 {[%emt 0:00:48]} ({Weaker is} 77. Rb8+ Kxb8 78. Be5 Kc8 $11) 77... Rg2 {[%emt 0:00:30]} 78. Rd6 {[%emt 0:00:33]} Rg5+ {[%emt 0:00:18]} 79. Kb4 {[%emt 0:00:02]} Rg4 {[%emt 0:00:33]} 80. Rhd8 $2 {[%emt 0:00:56]} (80. Kb5 $18 {is the precise move to win. White wants to mate with Rb6+.} Rg5+ 81. Ka4) 80... Rc6 {[%emt 0:00:18] [#]} (80... Rc8 $16 {was called for.}) 81. Rd5 $1 {[%emt 0:00:21]} Rc1 $2 {[%emt 0:00:24]} (81... Rh4 82. Ka5 Rh7) 82. Ka5 {[%emt 0:00:39]} Rc8 {[%emt 0:00:50]} 83. Rb5+ $2 {[%emt 0:00:20]} (83. R8d6 Rc6 84. Rb5+ Kc7 85. Rdd5 (85. Bb6+ Kxd6 86. Bf2 Rg2 $11)) 83... Kc7 {[%emt 0:00:07]} 84. Bb6+ {[%emt 0:00:13]} Kb7 {[%emt 0:00:14]} 85. Be3+ {[%emt 0:00:56]} (85. Ba7+ $18 Kc7 86. Rd1) 85... Kc7 $16 {[%emt 0:00:06]} 86. Bb6+ {[%emt 0:00:30]} (86. Rxc8+ {simplifies} Kxc8 87. Rd5 Rg3 88. Rd3) 86... Kb7 {[%emt 0:00:05] [#]} 87. Ba7+ $1 {[%emt 0:00:33][%mdl 512]} Kc7 {[%emt 0:00:22]} 88. Rdd5 {[%emt 0:00:11]} Rc4 {[%emt 0:00:37]} 89. Rb1 {[%emt 0:00:45]} Rc2 {[%emt 0:01:16]} 90. Kb5 {[%emt 0:00:29]} Rg8 {[%emt 0:00:50]} 91. Bb6+ {[%emt 0:00:31]} Kc8 $2 {[%emt 0:00:35]} (91... Kb7 92. Bd4 Re8) 92. Bc5 $2 {[%emt 0:00:35]} (92. Ka6) 92... Rg7 {[%emt 0:00:38]} 93. Re5 {[%emt 0:00:26]} Kb7 {[%emt 0:00:35]} 94. Rf1 {[%emt 0:00:33]} Rb2+ {[%emt 0:00:31]} 95. Bb4 {[%emt 0:00:08]} Rbg2 {[%emt 0:00:16]} 96. Rff5 {[%emt 0:00:51] Prevents R2g5.} Rg1 {[%emt 0:00:27]} 97. Rd5 {[%emt 0:00:31]} (97. Re7+ Rxe7 98. Bxe7 Rb1+ 99. Bb4 Kc7 $16) 97... R1g6 {[%emt 0:00:52]} 98. Bc5 {[%emt 0:00:28] Prevents Rb6+} Rg3 {[%emt 0:00:28]} 99. Rf6 {[%emt 0:00:15] aiming for Rb6+.} R3g6 {[%emt 0:00:28]} 100. Rxg6 {[%emt 0:00:40]} (100. Rf8 $18 {is more deadly.}) 100... Rxg6 $18 {[%emt 0:00:04][%mdl 4096] Endgame. KRB-KR} 101. Rd7+ {[%emt 0:00:05]} Kc8 {[%emt 0:00:04]} 102. Rf7 {[%emt 0:00:30]} Kd8 {[%emt 0:00:31]} 103. Kc4 {[%emt 0:00:35]} Rg5 {[%emt 0:00:42]} 104. Bd6 {[%emt 0:00:12]} Ke8 {[%emt 0:00:17]} 105. Re7+ {[%emt 0:00:15]} Kd8 {[%emt 0:00:12]} 106. Kd4 {[%emt 0:00:23]} Rh5 {[%emt 0:00:47]} 107. Ra7 {[%emt 0:00:33]} Ke8 {[%emt 0:00:37]} 108. Be5 {[%emt 0:00:20]} Rf5 {[%emt 0:00:53] [#]} 109. Kd5 $1 {[%emt 0:00:17] White threatens Ke6 and mate.} Rf7 {[%emt 0:00:09]} 110. Ra6 {[%emt 0:00:23]} Rd7+ {[%emt 0:00:27]} 111. Bd6 {[%emt 0:00:11]} Kf7 {[%emt 0:00:19]} 112. Ra2 {[%emt 0:00:18]} Rb7 {[%emt 0:00:57]} 113. Rf2+ {[%emt 0:00:17]} Kg6 {[%emt 0:00:35]} 114. Ke6 {[%emt 0:00:10]} Rb3 {[%emt 0:01:05]} 115. Rg2+ {[%emt 0:00:13]} Kh5 {[%emt 0:00:12]} 116. Kf5 {[%emt 0:00:11]} Kh4 {[%emt 0:00:30]} 117. Rh2+ $1 {[%emt 0:01:10]} Rh3 {[%emt 0:00:07]} 118. Rb2 {[%emt 0:00:12]} Rd3 {[%emt 0:00:19]} 119. Be5 {[%emt 0:00:57]} Rf3+ {[%emt 0:00:59]} 120. Bf4 {[%emt 0:00:23]} Ra3 {[%emt 0:00:32]} 121. Rh2+ {[%emt 0:03:02]} Rh3 {[%emt 0:00:05]} 122. Ra2 {[%emt 0:00:25]} Rb3 {[%emt 0:00:31]} 123. Ke4 {[%emt 0:00:36]} Kh3 {[%emt 0:00:49]} 124. Be5 {[%emt 0:00:29]} Kg4 {[%emt 0:00:46]} 125. Rg2+ {[%emt 0:00:28]} Kh3 {[%emt 0:00:29]} 126. Rg7 {[%emt 0:00:22]} Kh4 {[%emt 0:00:22]} 127. Kf4 {[%emt 0:00:26][%cal Rg7h7]} Kh3 $1 {[%emt 0:00:42]} 128. Bd4 {[%emt 0:00:43] Be3 would kill now.} Rb4 {[%emt 0:00:37]} 129. Rd7 {[%emt 0:00:31] Threatening mate with Kf3.} Kg2 {[%emt 0:00:15]} 130. Ke4 {[%emt 0:00:30]} (130. Rd6 $14) 130... Kg3 {[%emt 0:00:25]} 131. Rd8 {[%emt 0:00:23]} Ra4 {[%emt 0:00:16]} 132. Rg8+ {[%emt 0:00:32]} Kh4 {[%emt 0:00:33]} 133. Ke5 {[%emt 0:00:19]} Kh3 {[%emt 0:00:18] Black defended with fortune.   Weighted Error Value: White=0.09 (flawless) /Black=0.10 (very precise) .  Loses game:     	---       	Black=1      Mistake:       	White=9     	Black=6      Inaccurate:     	White=2     	Black=8      OK:         	White=40    	Black=38     Best:        	White=5     	Black=11     Strong:       	White=4     	Black=2      Brilliant:      	White=1     	Black=1} 1/2-1/2